bitfinex-derivatives/quotes_SOLF0:USTF0_20241218
["timestamp","ask_amount","ask_price","bid_price","bid_amount"]
[1734544290463,6.205,217.17,217.07,2.3037]
[1734544290765,6.205,217.17,216.99,20.17003222]
[1734544290964,6.205,217.17,216.9,4.611]
[1734544290965,16.01673222,217.15,217.0,8.00413573]
[1734544291165,0.72118862,217.14,216.95,16.01673222]
[1734544291462,2.3043,217.02,216.97,2.3047]
[1734544292362,2.3044,217.01,216.97,2.3047]
[1734544292759,2.1232,217.06,216.91,22.29403222]
[1734544292964,2.3046,216.99,216.92,2.4]
[1734544293564,2.3046,216.99,216.93,2.4]
[1734544294461,2.3046,216.99,216.94,7.74233481]
[1734544294658,2.1232,217.06,216.94,5.43733481]
[1734544294860,2.3043,217.02,216.94,5.43733481]
[1734544295062,2.1232,217.06,216.95,16.01673222]
[1734544295266,2.3039,217.06,216.95,16.01673222]
[1734544295466,2.3039,217.06,217.01,2.3043]
[1734544296766,2.3039,217.05,217.01,2.3043]
[1734544296968,2.3039,217.05,217.0,4.7044]
[1734544298168,4.0471,217.07,217.0,2.4]
[1734544298369,2.34,217.12,217.0,2.4]
[1734544298574,4.0406,217.14,217.0,2.4]
[1734544298766,2.3032,217.12,217.07,2.3037]
[1734544299267,2.0349,217.14,217.05,2.34]
[1734544299871,2.3031,217.13,217.07,2.3036]
[1734544300072,2.0349,217.14,217.05,2.34]
[1734544300570,193.65856878,217.18,217.1,2.3034]
[1734544300969,193.65856878,217.18,217.1,2.34]
[1734544301162,193.65856878,217.18,217.13,2.303]
[1734544301163,2.3027,217.17,217.13,2.303]
[1734544302266,2.155,217.19,217.13,2.303]
[1734544302472,66.2312,217.2,217.12,2.34]
[1734544302971,66.2312,217.2,217.14,2.3029]
[1734544303167,66.2312,217.2,217.12,2.34]
[1734544303869,66.2312,217.2,217.19,2.3024]
[1734544304066,66.2312,217.2,217.18,2.34]
[1734544304466,66.2312,217.2,217.19,2.3024]
[1734544310877,66.2312,217.2,217.19,7.74361329]
[1734544311277,66.2312,217.2,217.19,10.08361329]
[1734544315775,66.2312,217.2,217.17,2.34]
[1734544315984,66.2312,217.2,217.18,2.3025]
[1734544318472,66.2312,217.2,217.17,5.4256922]
[1734544319181,66.2312,217.2,217.17,7.7282922]
[1734544319376,66.2312,217.2,217.17,5.4256922]
[1734544319580,66.2312,217.2,217.18,2.34]
[1734544320081,66.2312,217.2,217.19,2.3024]
[1734544322777,66.2312,217.2,217.17,7.7281922]
[1734544323278,66.2312,217.2,217.17,5.4256922]
[1734544323482,66.2312,217.2,217.18,2.3025]
[1734544323884,66.2312,217.2,217.1,16.01673222]
[1734544324183,66.2312,217.2,217.11,12.33873939]
[1734544324386,66.2312,217.2,217.12,2.34]
[1734544325582,2.3024,217.19,217.14,2.3029]
[1734544326885,68.5335,217.2,217.16,2.3027]
[1734544327089,66.2312,217.2,217.13,5.49559763]
[1734544327987,68.5335,217.2,217.16,2.3027]
[1734544328189,66.2312,217.2,217.16,2.3027]
[1734544328490,66.2312,217.2,217.17,2.3026]
[1734544328685,66.2312,217.2,217.17,2.32]
[1734544329086,66.2312,217.2,217.19,2.3024]
[1734544331787,2.32,217.32,217.26,2.3017]
[1734544331986,15.59823964,217.32,217.26,2.3017]
[1734544332289,2.3013,217.3,217.26,2.3017]
[1734544332488,2.3013,217.3,217.25,2.3018]
[1734544333890,2.0735,217.32,217.24,2.32]
[1734544334383,2.0735,217.32,217.16,15.9987128]
[1734544334588,0.72050626,217.31,217.17,2.32]
[1734544334989,4.3746,217.32,217.27,2.3015]
[1734544335188,4.3746,217.32,217.2,15.9987128]
[1734544335189,4.3746,217.32,217.25,2.32]
[1734544335790,2.0735,217.32,217.3,2.3012]
[1734544335987,191.31856878,217.31,217.3,2.3012]
[1734544336395,191.31856878,217.31,217.27,2.3015]
[1734544337093,191.31856878,217.31,217.25,2.32]
[1734544337988,191.31856878,217.31,217.24,5.54084456]
[1734544338191,191.31856878,217.31,217.24,7.86084456]
[1734544338388,2.3013,217.3,217.26,2.3017]
[1734544339290,11.22328007,217.3,217.13,5.49559763]
[1734544339496,7.93433224,217.29,217.13,5.49559763]
[1734544339694,3.04055506,217.28,217.14,2.32]
[1734544339994,0.72066472,217.27,217.17,2.3026]
[1734544340194,255.09142504,217.25,217.14,2.32]
[1734544340394,2.3021,217.23,217.18,2.3025]
[1734544340593,2.1033,217.24,217.14,2.32]
[1734544340988,2.1033,217.24,217.16,2.3027]
[1734544340989,2.3023,217.21,217.16,2.3027]
[1734544341393,2.3023,217.21,217.15,2.32]
[1734544342394,13.34519555,217.24,217.15,2.32]
[1734544342595,2.3021,217.23,217.15,2.32]
[1734544342995,2.0374,217.22,217.15,2.32]
[1734544343196,4.3395,217.22,217.17,2.3026]
[1734544344298,4.3395,217.22,217.15,2.32]
[1734544344499,4.3395,217.22,217.18,2.3025]
[1734544344697,2.0374,217.22,217.15,2.32]
[1734544345700,2.0374,217.22,217.19,2.3023]
[1734544345900,2.0374,217.22,217.15,2.32]
[1734544347391,2.0374,217.22,217.21,2.3022]
[1734544347895,255.09142504,217.25,217.23,2.302]
[1734544348398,255.09142504,217.25,217.15,2.32]
[1734544348792,257.39322504,217.25,217.14,9.99505335]
[1734544348996,257.39322504,217.25,217.15,2.32]
[1734544349294,11.26579997,217.24,217.15,2.32]
[1734544349494,257.39322504,217.25,217.2,2.3022]
[1734544349893,255.09142504,217.25,217.23,2.3019]
[1734544350402,255.09142504,217.25,217.23,2.302]
[1734544351402,255.09142504,217.25,217.24,2.3019]
[1734544351904,191.31856878,217.28,217.2,12.31505335]
[1734544352402,4.1531,217.3,217.2,12.31505335]
[1734544352604,15.41623886,217.3,217.2,12.31505335]
[1734544352804,15.41623886,217.3,217.27,2.3015]
[1734544353204,4.1531,217.3,217.27,2.3015]
[1734544353400,15.41487589,217.3,217.26,2.3017]
[1734544353905,17.71617589,217.3,217.26,2.3017]
[1734544354109,4.1531,217.3,217.27,2.3015]
[1734544355904,2.3014,217.29,217.25,2.3018]
[1734544356103,22.63963892,217.3,217.19,2.32]
[1734544356304,29.30818876,217.29,217.18,2.32]
[1734544356507,2.3018,217.25,217.22,2.3021]
[1734544357708,2.3018,217.25,217.18,2.32]
[1734544357903,2.3018,217.25,217.21,2.3022]
[1734544358910,2.3018,217.25,217.18,2.32]
[1734544359106,2.3018,217.25,217.22,2.3021]
[1734544360411,20.58021522,217.27,217.18,2.32]
[1734544360714,2.0911,217.27,217.2,2.3023]
[1734544361012,2.0911,217.27,217.13,4.603]
[1734544361013,2.3026,217.17,217.13,4.603]
[1734544361214,9.52781073,217.22,217.13,2.3]
[1734544361516,17.31012369,217.22,217.18,2.3025]
[1734544361823,2.3,217.26,217.13,12.29505335]
[1734544362013,0.72073331,217.25,217.13,12.29505335]
[1734544362513,26.98734692,217.25,217.13,12.29505335]
[1734544362715,2.3022,217.22,217.17,2.3026]
[1734544362913,11.26132853,217.23,217.17,2.3026]
[1734544363115,11.26132853,217.22,217.17,2.3026]
[1734544363312,2.3,217.26,217.17,2.3026]
[1734544363512,10.71579909,217.25,217.13,2.3]
[1734544363717,26.98060842,217.24,217.14,2.3029]
[1734544363917,9.99505335,217.22,217.1,2.3]
[1734544364218,23.60774038,217.21,217.09,2.62424]
[1734544364416,19.20277644,217.2,217.09,2.62424]
[1734544364613,21.11014283,217.2,217.09,2.62424]
[1734544364818,18.48158505,217.19,217.09,2.62424]
[1734544365020,2.303,217.14,217.1,2.3033]
[1734544365315,11.25677479,217.17,217.09,0.32424]
[1734544365516,15.64597479,217.16,217.09,0.32424]
[1734544365815,4.3892,217.16,217.09,0.32424]
[1734544366014,2.0892,217.16,217.09,0.32424]
[1734544366219,191.31856878,217.18,217.15,2.3028]
[1734544366718,2.3025,217.19,217.15,2.3028]
[1734544367516,2.0754,217.2,217.16,2.3027]
[1734544367814,2.0754,217.2,217.13,9.99505335]
[1734544368214,2.0754,217.2,217.19,2.3024]
[1734544368613,2.0754,217.2,217.13,9.99505335]
[1734544368918,2.0754,217.2,217.18,2.3025]
[1734544370114,2.0754,217.2,217.13,9.99505335]
[1734544370418,2.0754,217.2,217.15,2.3028]
[1734544371016,2.0754,217.2,217.16,2.3027]
[1734544371417,2.0754,217.2,217.12,2.3]
[1734544371919,2.3026,217.18,217.14,2.3029]
[1734544372120,2.0754,217.2,217.12,2.3]
[1734544373311,2.3025,217.19,217.15,2.3028]
[1734544373519,2.3025,217.19,217.12,2.3]
[1734544373722,2.0754,217.2,217.1,9.99505335]
[1734544373913,2.0754,217.2,217.11,2.3]
[1734544374418,13.32049026,217.2,217.11,2.3]
[1734544374615,21.24014361,217.19,217.08,0.30137]
[1734544374922,11.24433157,217.18,217.08,0.30137]
[1734544375225,2.3029,217.15,217.1,2.3033]
[1734544375418,2.3,217.17,217.08,0.30137]
[1734544375718,4.6027,217.17,217.13,2.303]
[1734544375923,2.0754,217.2,217.08,0.30137]
[1734544376221,2.3026,217.18,217.08,0.30137]
[1734544376819,2.3026,217.18,217.13,2.303]
[1734544378323,2.0754,217.2,217.14,2.303]
[1734544378624,2.3026,217.17,217.14,2.303]
[1734544379120,2.0754,217.2,217.08,0.30137]
[1734544379315,10.715953,217.19,217.08,0.30137]
[1734544379524,11.24155389,217.18,217.08,0.30137]
[1734544380021,2.3031,217.13,217.1,2.3034]
[1734544380221,12.29505335,217.16,217.08,0.30137]
[1734544380420,11.24155389,217.15,217.08,0.30137]
[1734544380626,13.27075389,217.15,217.08,0.30137]
[1734544381220,0.72112712,217.14,217.08,0.30137]
[1734544381723,9.99505335,217.13,217.08,0.30137]
[1734544381924,2.0292,217.15,217.08,0.30137]
[1734544381925,2.3032,217.12,217.08,0.30137]
[1734544382122,193.34776878,217.15,217.08,0.30137]
[1734544382424,2.3031,217.13,217.08,0.30137]
[1734544383526,2.0292,217.15,217.09,2.3034]
[1734544383721,2.3032,217.12,217.09,2.3034]
[1734544384322,2.303,217.14,217.11,2.3032]
[1734544385425,2.303,217.14,217.1,2.3034]
[1734544385622,2.0292,217.15,217.08,0.30137]
[1734544386119,4.3321,217.15,217.08,0.30137]
[1734544386925,4.3321,217.15,217.11,2.3033]
[1734544387424,2.3026,217.18,217.14,2.3029]
[1734544388923,2.0754,217.2,217.12,2.28]
[1734544389120,191.31856878,217.21,217.13,9.99505335]
[1734544389428,255.09142504,217.22,217.13,9.99505335]
[1734544390022,191.31856878,217.24,217.18,2.3024]
[1734544390023,2.3021,217.23,217.18,2.3024]
[1734544390222,191.31856878,217.24,217.17,2.28]
[1734544390421,191.31856878,217.24,217.23,2.302]
[1734544390624,2.1421,217.26,217.17,2.28]
[1734544390625,193.46066878,217.26,217.17,2.28]
[1734544390924,191.31856878,217.26,217.19,9.99505335]
[1734544391126,191.31856878,217.26,217.23,2.302]
[1734544391324,2.3015,217.28,217.23,2.302]
[1734544393525,191.31856878,217.29,217.25,2.3018]
[1734544393727,191.31856878,217.29,217.22,2.28]
[1734544394129,191.31856878,217.29,217.18,2.28]
[1734544394130,9.99505335,217.27,217.18,2.28]
[1734544394329,11.23149429,217.26,217.16,2.28]
[1734544394521,13.30519429,217.26,217.16,2.28]
[1734544394726,2.0737,217.26,217.16,2.28]
[1734544395224,2.0737,217.26,217.16,7.79162945]
[1734544395428,2.302,217.23,217.16,7.79162945]
[1734544396330,2.302,217.23,217.18,2.3025]
[1734544396824,2.3019,217.24,217.19,2.3024]
[1734544397030,191.31856878,217.29,217.16,17.7866828]
[1734544397427,191.31856878,217.29,217.16,7.79162945]
[1734544397428,11.23383738,217.28,217.16,7.79162945]
[1734544398430,11.23383738,217.28,217.19,2.3024]
[1734544398832,2.302,217.24,217.19,2.3024]
[1734544399030,21.22889073,217.28,217.19,2.3024]
[1734544399229,2.3019,217.24,217.19,2.3024]
[1734544399434,11.23383738,217.27,217.16,7.79162945]
[1734544400130,0.72065882,217.26,217.16,7.79162945]
[1734544400433,2.302,217.23,217.19,2.3024]
[1734544400731,17.2686341,217.26,217.16,7.79162945]
[1734544400931,2.302,217.24,217.18,2.3025]
[1734544401132,2.28,217.26,217.16,7.79162945]
[1734544401333,7.77041912,217.27,217.16,17.7866828]
[1734544401633,11.2455409,217.28,217.16,17.7866828]
[1734544402032,2.3017,217.26,217.16,17.7866828]
[1734544402533,2.3017,217.26,217.22,2.3021]
[1734544402927,191.31856878,217.29,217.21,2.28]
[1734544403129,193.29946878,217.31,217.21,2.28]
[1734544403434,2.3014,217.29,217.21,2.28]
[1734544405436,2.3014,217.29,217.25,2.3017]
[1734544405931,255.09142504,217.32,217.22,9.99505335]
[1734544407041,2.1812,217.33,217.27,2.3015]
[1734544407042,2.3012,217.31,217.27,2.3015]
[1734544407538,9.99505335,217.32,217.26,2.28]
[1734544407728,9.99505335,217.32,217.19,9.99505335]
[1734544407729,9.99505335,217.32,217.22,2.28]
[1734544409035,9.99505335,217.32,217.24,2.3019]
[1734544409931,2.1812,217.33,217.22,2.28]
[1734544410131,2.1812,217.33,217.22,12.27505335]
[1734544410730,2.3012,217.31,217.22,12.27505335]
[1734544410934,2.1812,217.33,217.22,12.27505335]
[1734544411138,2.3011,217.32,217.27,2.3015]
[1734544411334,2.1812,217.33,217.22,12.27505335]
[1734544412540,2.3013,217.3,217.26,2.3016]
[1734544413040,2.3012,217.31,217.27,2.3016]
[1734544413637,13.39937847,217.33,217.22,12.27505335]
[1734544413832,2.3011,217.32,217.28,2.3015]
[1734544414037,13.39937847,217.33,217.22,12.27505335]
[1734544414339,2.3013,217.31,217.26,2.3016]
[1734544415131,13.39937847,217.33,217.22,2.28]
[1734544415942,2.3015,217.28,217.24,2.3019]
[1734544416442,2.3016,217.27,217.24,2.3019]
[1734544418542,11.21817847,217.32,217.22,2.28]
[1734544418941,193.49976878,217.33,217.22,2.28]
[1734544419140,2.3017,217.26,217.23,2.302]
[1734544420937,2.28,217.31,217.21,2.28]
[1734544421842,2.3014,217.29,217.21,2.28]
[1734544422240,2.28,217.31,217.22,2.28]
[1734544422450,2.3014,217.3,217.22,2.28]
[1734544422643,193.49976878,217.33,217.22,2.28]
[1734544422839,195.77976878,217.33,217.22,2.28]
[1734544423039,2.3014,217.29,217.25,2.3017]
[1734544423641,195.77976878,217.33,217.22,2.28]
[1734544423844,193.49976878,217.33,217.22,12.27505335]
[1734544424449,2.3013,217.3,217.26,2.3016]
[1734544425450,2.3016,217.28,217.24,2.3019]
[1734544425650,21.21432066,217.32,217.2,2.28]
[1734544425849,2.0157,217.27,217.2,2.28]
[1734544426052,2.302,217.23,217.19,2.3024]
[1734544426255,6.39754393,217.25,217.17,2.28]
[1734544426452,6.39754393,217.25,217.17,8.67754393]
[1734544427454,2.3022,217.22,217.19,2.3024]
[1734544427855,2.302,217.23,217.17,8.67754393]
[1734544428055,2.302,217.23,217.2,2.3023]
[1734544429555,2.302,217.23,217.19,2.3024]
[1734544429955,193.62056878,217.23,217.19,2.3024]
[1734544431761,20.7612812,217.22,217.14,0.25566]
[1734544431948,11.25593475,217.21,217.14,0.25566]
[1734544432152,2.3029,217.15,217.14,0.25566]
[1734544432353,20.76180556,217.2,217.07,5.39031326]
[1734544432554,26.26410102,217.19,217.07,5.39031326]
[1734544432756,26.26410102,217.18,217.07,5.39031326]
[1734544433053,2.303,217.14,217.08,2.3035]
[1734544433362,11.25593475,217.16,217.08,2.3035]
[1734544433554,2.3032,217.13,217.08,2.3035]
[1734544433755,2.28,217.15,217.08,2.3035]
[1734544434360,2.28,217.15,217.03,12.27487679]
[1734544434557,28.54210507,217.15,217.03,12.27487679]
[1734544434856,26.26210507,217.14,217.03,12.27487679]
[1734544435056,11.25866565,217.13,217.03,12.27487679]
[1734544435249,11.25866565,217.12,217.04,2.304]
[1734544435454,11.2473874,217.11,217.0,12.27487679]
[1734544435653,2.28,217.1,217.0,12.27487679]
[1734544435956,9.99487679,217.09,216.94,11.97197679]
[1734544436157,9.99487679,217.09,216.96,2.28]
[1734544436353,2.3043,217.02,216.97,2.3048]
[1734544436552,1.9535,217.08,216.93,9.99487679]
[1734544436553,2.28,217.05,216.93,9.99487679]
[1734544436760,2.132,217.04,216.92,2.28]
[1734544436960,9.99487679,217.03,216.88,9.99487679]
[1734544437158,0.72158751,217.02,216.89,2.28]
[1734544437563,1.9537,217.01,216.89,2.28]
[1734544437753,2.3048,216.97,216.89,4.5856]
[1734544437954,2.28,217.0,216.89,2.28]
[1734544438155,1.9537,217.01,216.89,2.28]
[1734544438357,1.9537,217.01,216.91,9.99487679]
[1734544438562,2.3045,217.0,216.95,2.305]
[1734544438760,4.2337,217.01,216.91,9.99487679]
[1734544439262,4.412,217.04,216.94,9.99487679]
[1734544439461,2.28,217.06,216.97,9.99487679]
[1734544439966,2.0491,217.07,216.97,9.99487679]
[1734544440468,4.3529,217.07,217.0,2.3043]
[1734544440662,2.0491,217.07,217.0,2.3043]
[1734544441466,2.28,217.15,217.03,9.99487679]
[1734544441665,4.1145,217.16,217.03,9.99487679]
[1734544441863,2.303,217.14,217.06,9.99487679]
[1734544442067,2.0491,217.16,217.07,2.28]
[1734544442366,2.28,217.17,217.07,2.28]
[1734544442865,255.09142504,217.19,217.07,2.28]
[1734544443171,255.09142504,217.19,217.09,9.99487679]
[1734544443465,255.09142504,217.19,217.12,9.99487679]
[1734544443669,255.09142504,217.19,217.13,2.28]
[1734544444063,255.09142504,217.19,217.14,2.3029]
[1734544444269,255.09142504,217.19,217.13,2.28]
[1734544444665,257.39392504,217.19,217.13,4.583]
[1734544445070,257.39392504,217.19,217.13,2.28]
[1734544445264,255.09142504,217.19,217.13,2.28]
[1734544445860,255.09142504,217.19,217.15,2.3028]
[1734544446363,255.09142504,217.19,217.14,2.3029]
[1734544446865,255.09142504,217.19,217.15,2.3028]
[1734544447265,255.09142504,217.19,217.13,2.28]
[1734544447968,255.09142504,217.19,217.14,2.3029]
[1734544448468,255.09142504,217.19,217.13,2.28]
[1734544449167,255.09142504,217.19,217.15,9.99487679]
[1734544449371,2.28,217.25,217.2,2.3023]
[1734544449560,2.3017,217.26,217.15,9.99487679]
[1734544450068,2.3018,217.25,217.15,9.99487679]
[1734544451071,2.3018,217.25,217.18,2.3025]
[1734544451368,2.3019,217.24,217.15,9.99487679]
[1734544451764,2.3019,217.24,217.19,2.3024]
[1734544452166,9.99487679,217.24,217.08,9.99487679]
[1734544452463,9.99487679,217.24,217.09,2.28]
[1734544452672,2.3023,217.21,217.15,2.3029]
[1734544452969,2.28,217.22,217.15,2.3029]
[1734544454463,2.3024,217.2,217.15,2.3029]
[1734544454666,2.28,217.22,217.08,9.99487679]
[1734544454861,2.0565,217.19,217.08,12.27487679]
[1734544456169,2.3026,217.18,217.13,2.3031]
[1734544456565,7.66354264,217.27,217.14,12.27487679]
[1734544456765,9.72004264,217.27,217.14,12.27487679]
[1734544457674,2.3019,217.25,217.2,2.3023]
[1734544457876,9.72004264,217.27,217.2,2.3023]
[1734544458070,9.72004264,217.27,217.14,2.28]
[1734544458375,9.99487679,217.24,217.08,2.28]
[1734544458673,2.3024,217.2,217.08,2.28]
[1734544459066,2.28,217.21,217.1,9.99487679]
[1734544459470,12.27487679,217.21,217.09,2.28]
[1734544459667,12.27487679,217.21,217.11,2.3033]
[1734544459874,2.3028,217.16,217.11,2.3033]
[1734544460077,12.27487679,217.21,217.07,2.28]
[1734544460270,0.72092576,217.2,217.07,2.28]
[1734544460474,2.28,217.21,217.07,12.27487679]
[1734544460674,2.28,217.22,217.07,12.27487679]
[1734544460880,2.28,217.22,217.1,9.99487679]
[1734544461081,2.3023,217.2,217.1,9.99487679]
[1734544461480,2.28,217.22,217.1,9.99487679]
[1734544462585,2.3024,217.19,217.15,2.3028]
[1734544463086,2.3024,217.19,217.14,2.3029]
[1734544463684,2.3026,217.18,217.14,2.3029]
[1734544466387,2.3025,217.19,217.14,2.3029]
[1734544466587,2.3025,217.19,217.15,2.3028]
[1734544468693,2.3025,217.18,217.15,2.3028]
[1734544469085,2.3025,217.18,217.05,0.44508]
[1734544469086,12.27487679,217.17,217.05,0.44508]
[1734544469391,2.28,217.16,217.05,0.44508]
[1734544469591,2.28,217.16,217.06,2.3038]
[1734544469787,2.28,217.16,217.05,0.44508]
[1734544469988,2.28,217.16,217.05,2.72508]
[1734544470286,2.3031,217.13,217.07,2.3036]
[1734544470891,2.303,217.15,217.05,2.72508]
[1734544471490,2.303,217.15,217.1,2.3034]
[1734544472182,2.3029,217.15,217.1,2.3034]
[1734544472684,2.2414,217.19,217.1,2.28]
[1734544472890,2.2414,217.19,217.06,2.28]
[1734544473191,2.2414,217.19,217.08,9.99487679]
[1734544473795,2.3027,217.16,217.08,9.99487679]
[1734544473989,2.2414,217.19,217.08,9.99487679]
[1734544474692,2.3028,217.16,217.12,2.3031]
[1734544474985,2.2414,217.19,217.08,9.99487679]
[1734544475191,2.3033,217.12,217.08,2.28]
[1734544475395,2.28,217.15,217.05,0.44508]
[1734544475593,2.1097,217.14,217.05,0.44508]
[1734544475787,2.3038,217.06,217.05,0.44508]
[1734544477992,2.3043,217.02,216.97,2.3047]
[1734544478289,195.72386878,217.09,216.97,2.3047]
[1734544478597,11.95057725,217.08,216.97,2.3047]
[1734544478797,11.2292097,217.08,216.97,2.3047]
[1734544479292,2.3039,217.05,216.97,2.3047]
[1734544479598,195.72386878,217.09,216.99,2.3045]
[1734544480398,195.72386878,217.09,216.96,9.99487679]
[1734544480601,191.31856878,217.09,216.99,9.99487679]
[1734544480799,191.31856878,217.09,217.0,2.4]
[1734544480999,193.62206878,217.09,217.04,2.3039]
[1734544481201,2.3035,217.09,217.04,2.3039]
[1734544481994,257.49142504,217.13,217.0,2.4]
[1734544482195,257.49142504,217.13,217.02,9.99487679]
[1734544482398,255.09142504,217.13,217.02,9.99487679]
[1734544482701,255.09142504,217.13,217.05,9.99487679]
[1734544482901,255.09142504,217.13,217.01,6.7684]
[1734544483104,14.20257679,217.14,217.01,2.4]
[1734544483400,2.3036,217.08,217.03,2.3041]
[1734544484397,2.4,217.11,216.96,2.2333]
[1734544484601,0.72126711,217.1,216.98,2.3046]
[1734544484801,9.99487679,217.08,216.96,2.4]
[1734544485104,0.72126711,217.1,216.96,2.4]
[1734544485105,2.304,217.05,217.0,2.3044]
[1734544485601,11.23272334,217.1,216.96,12.39487679]
[1734544485804,2.4,217.11,216.99,9.99487679]
[1734544486001,2.4,217.11,217.02,9.99487679]
[1734544486304,15.44339438,217.14,217.03,2.4]
[1734544486504,11.95686087,217.13,217.03,2.4]
[1734544486706,4.2077,217.14,217.03,2.4]
[1734544487096,2.3036,217.09,217.05,2.3038]
[1734544488005,4.2077,217.14,217.05,2.3038]
[1734544488209,0.72112485,217.13,217.03,2.4]
[1734544488404,9.99487679,217.12,216.97,2.4]
[1734544488605,11.95468751,217.11,216.97,2.4]
[1734544488905,3.12112485,217.1,216.97,2.4]
[1734544489104,2.4,217.1,216.97,2.4]
[1734544489309,10.71617675,217.09,216.96,2.4]
[1734544489509,11.95216656,217.08,216.96,2.4]
[1734544489716,2.304,217.05,216.98,2.3046]
[1734544489910,2.4,217.07,216.96,12.39487679]
[1734544491409,13.62732447,217.11,216.96,12.39487679]
[1734544491618,11.22732447,217.11,216.96,12.39487679]
[1734544491815,2.4,217.11,216.96,12.39487679]
[1734544492015,2.4,217.11,216.99,9.99487679]
[1734544492514,2.304,217.05,216.99,12.39487679]
[1734544492713,12.39487679,217.06,216.91,4.6473]
[1734544492915,2.3045,217.0,216.96,2.3048]
[1734544493116,8.8947,217.05,216.91,14.64217679]
[1734544493516,2.3045,217.0,216.95,2.305]
[1734544494017,8.8947,217.05,216.95,2.305]
[1734544495120,2.3045,217.0,216.95,2.305]
[1734544495414,8.8947,217.05,216.95,2.305]
[1734544496818,2.3045,217.0,216.95,2.305]
[1734544497318,4.2707,217.05,216.94,15.70313764]
[1734544498423,2.3042,217.02,216.98,2.3046]
[1734544498714,2.3042,217.02,216.98,2.4]
[1734544499109,2.3042,217.02,216.98,4.7046]
[1734544499719,191.31856878,217.1,216.98,12.39487679]
[1734544499916,191.31856878,217.1,217.01,9.99487679]
[1734544500421,2.3037,217.07,217.01,9.99487679]
[1734544500720,191.31856878,217.13,217.01,9.99487679]
[1734544501319,2.3036,217.08,217.04,2.3039]
[1734544502112,2.3035,217.09,217.05,2.3039]
[1734544502617,2.3033,217.11,217.04,9.99487679]
[1734544502822,4.3309,217.14,217.04,9.99487679]
[1734544503621,2.3032,217.12,217.08,2.3036]
[1734544504727,4.3309,217.14,217.04,9.99487679]
[1734544504914,2.3031,217.13,217.09,2.3034]
[1734544506923,4.3309,217.14,217.08,2.4]
[1734544507626,2.3035,217.1,217.08,2.4]
[1734544507821,4.3309,217.14,217.03,2.42]
[1734544508126,2.3037,217.08,217.04,2.304]
[1734544509229,4.3309,217.14,217.02,2.42]
[1734544510018,2.3031,217.13,217.07,2.3037]
[1734544510223,2.3031,217.13,217.04,9.99487679]
[1734544510825,2.3031,217.13,217.09,2.3035]
[1734544511526,2.3032,217.12,217.08,2.3036]
[1734544511826,4.3309,217.14,217.07,2.42]
[1734544512730,4.3309,217.14,217.04,9.99487679]
[1734544512924,4.3309,217.14,217.04,12.41487679]
[1734544513825,4.4211,217.14,217.04,12.41487679]
[1734544514725,257.39412504,217.17,217.07,9.99487679]
[1734544514925,255.09142504,217.17,217.07,9.99487679]
[1734544515228,255.09142504,217.17,217.13,2.3031]
[1734544515430,2.42,217.2,217.13,2.3031]
[1734544515629,2.3027,217.17,217.11,2.42]
[1734544516332,13.66003032,217.2,217.11,4.7232]
[1734544516825,2.3032,217.13,217.08,4.7235]
[1734544517030,2.3032,217.13,217.04,9.99487679]
[1734544517031,2.3032,217.13,217.07,2.42]
[1734544517920,2.3033,217.12,217.08,2.3036]
[1734544518625,2.3033,217.11,217.07,2.3037]
[1734544518827,9.99487679,217.12,216.98,12.23407679]
[1734544519125,17.76511204,217.11,216.99,2.42]
[1734544519325,2.3038,217.07,216.99,2.3045]
[1734544519523,13.66871204,217.1,216.98,12.41487679]
[1734544519729,2.42,217.1,216.98,12.41487679]
[1734544520124,6.5164,217.11,216.98,12.41487679]